bitfinex/quotes_BTCUSD_20220303
["timestamp","ask_amount","ask_price","bid_price","bid_amount"]
[1646271214854,0.26860403,44043.0,44040.0,0.33092001]
[1646271215652,0.23,44041.0,44040.0,0.33092001]
[1646271216051,0.23,44041.0,44040.0,0.32992001]
[1646271217854,0.38,44041.0,44040.0,0.32992001]
[1646271218093,0.23,44041.0,44040.0,0.32992001]
[1646271218295,0.38,44041.0,44040.0,0.32992001]
[1646271218696,0.7182,44039.0,44033.0,0.00020897]
[1646271218899,0.1727,44038.0,44033.0,0.00020897]
[1646271219296,0.0227,44036.0,44020.0,0.2499]
[1646271219598,0.0227,44036.0,44033.0,0.00020896]
[1646271219599,0.056802,44035.0,44033.0,0.00020896]
[1646271219798,0.19604145,44034.0,44033.0,0.00020896]
[1646271219995,0.056802,44035.0,44033.0,0.00020896]
[1646271220195,0.15,44038.0,44033.0,0.00020896]
[1646271220396,0.05679838,44034.0,44033.0,0.00020896]
[1646271220597,0.07949838,44034.0,44022.0,0.24058866]
[1646271220797,0.05679838,44034.0,44033.0,0.00120896]
[1646271221397,0.26590258,44034.0,44033.0,0.00120896]
[1646271221831,0.26590258,44034.0,44033.0,0.001]
[1646271222031,0.05679838,44034.0,44031.0,0.00020954]
[1646271222332,0.25720687,44034.0,44031.0,0.00020954]
[1646271222532,0.05679838,44034.0,44031.0,0.00020954]
[1646271222831,0.05879838,44034.0,44031.0,0.00020954]
[1646271223031,0.05879838,44034.0,44026.0,0.002]
[1646271223032,0.08149838,44034.0,44026.0,0.002]
[1646271223232,0.05879838,44034.0,44030.0,0.00020955]
[1646271224233,0.20517417,44028.0,44023.0,0.15562891]
[1646271224436,0.0227,44033.0,44023.0,0.15562891]
[1646271224836,0.0227,44033.0,44023.0,0.16062891]
[1646271225235,0.0227,44033.0,44024.0,0.3]
[1646271225437,0.2527,44033.0,44024.0,0.3]
[1646271225677,0.2527,44033.0,44026.0,0.00020952]
[1646271225984,0.23,44033.0,44026.0,0.00020952]
[1646271226583,0.23,44033.0,44026.0,0.05679]
[1646271226779,0.23,44033.0,44027.0,0.00020951]
[1646271227784,0.23,44033.0,44026.0,0.005]
[1646271227980,0.23,44033.0,44023.0,0.21242291]
[1646271227981,0.23,44033.0,44028.0,0.00020951]
[1646271228884,0.23,44033.0,44024.0,0.3]
[1646271229186,0.23,44033.0,44028.0,0.00020952]
[1646271229639,0.23,44033.0,44030.0,0.18881532]
[1646271229838,0.23,44033.0,44028.0,0.00020952]
[1646271230240,0.23,44033.0,44027.0,0.056789]
[1646271230840,0.23,44033.0,44027.0,0.004]
[1646271231442,0.4322185,44033.0,44027.0,0.004]
[1646271232042,0.4322185,44033.0,44026.0,0.19821788]
[1646271232441,0.4322185,44033.0,44024.0,0.413576]
[1646271232641,0.4322185,44033.0,44024.0,0.113576]
[1646271232841,0.4322185,44033.0,44027.0,0.00022457]
[1646271233700,0.4322185,44033.0,44022.0,0.18878881]
[1646271233905,0.4322185,44033.0,44028.0,0.00022457]
[1646271235002,0.4322185,44033.0,44021.0,0.50013881]
[1646271235202,0.4322185,44033.0,44028.0,0.00022457]
[1646271235203,0.21917607,44033.0,44028.0,0.00022457]
[1646271235406,0.21917607,44033.0,44029.0,0.37644697]
[1646271235606,0.0002245,44041.0,44033.0,0.66900151]
[1646271235803,0.0002245,44041.0,44034.0,0.1457]
[1646271236305,0.2035492,44049.0,44046.0,0.0022275]
[1646271241390,0.18112456,44048.0,44046.0,0.0022275]
[1646271241597,0.2035492,44049.0,44046.0,0.0022275]
[1646271241991,0.002,44049.0,44046.0,0.0022275]
[1646271242590,0.002,44049.0,44047.0,0.15675976]
[1646271242789,0.00021207,44050.0,44046.0,0.0022275]
[1646271243188,0.00021207,44050.0,44049.0,0.135]
[1646271243389,0.20560126,44055.0,44049.0,0.135]
[1646271243589,0.00021207,44050.0,44046.0,0.0022275]
[1646271243790,0.00021207,44050.0,44046.0,0.0032275]
[1646271243992,0.26309852,44049.0,44046.0,0.0032275]
[1646271244845,0.17533412,44047.0,44046.0,0.0022275]
[1646271245245,0.35972903,44047.0,44046.0,0.0022275]
[1646271245647,0.65972903,44047.0,44046.0,0.0022275]
[1646271245851,1.95924103,44047.0,44046.0,7.5e-06]
[1646271246047,1.95924103,44047.0,44041.0,0.003]
[1646271246048,1.48923412,44047.0,44041.0,0.003]
[1646271246248,0.15,44042.0,44041.0,0.003]
[1646271246446,0.4957,44042.0,44041.0,0.003]
[1646271246848,0.0227,44041.0,44033.0,0.55567467]
[1646271247054,0.1227,44041.0,44033.0,0.55546551]
[1646271247248,0.1227,44041.0,44033.0,0.55567466]
[1646271247249,0.23273585,44037.0,44033.0,0.55567466]
[1646271248283,0.23273585,44037.0,44033.0,0.55546551]
[1646271248483,0.23273585,44037.0,44033.0,0.55567485]
[1646271249486,0.23273585,44037.0,44033.0,0.55546551]
[1646271249689,0.20651057,44035.0,44033.0,0.55567485]
[1646271249885,0.3,44036.0,44033.0,0.55567485]
[1646271250684,0.3,44036.0,44033.0,0.55546551]
[1646271250884,0.4,44036.0,44033.0,0.55546551]
[1646271251087,1.0955,44036.0,44033.0,0.55546551]
[1646271251295,1.049512,44034.0,44033.0,0.55546551]
[1646271251489,1.0412,44034.0,44033.0,0.55546551]
[1646271251694,1.1412,44034.0,44033.0,0.55546551]
[1646271252133,1.495212,44034.0,44033.0,0.55546551]
[1646271254035,1.195212,44034.0,44033.0,0.55546551]
[1646271254237,0.499712,44034.0,44033.0,0.55546551]
[1646271254438,0.454012,44034.0,44033.0,0.55546551]
[1646271256003,0.674012,44034.0,44033.0,0.55546551]
[1646271258502,1.369512,44034.0,44033.0,0.55546551]
[1646271258705,0.674012,44034.0,44033.0,0.55546551]
[1646271260337,1.369512,44034.0,44033.0,0.55546551]
[1646271264101,0.674012,44034.0,44033.0,0.55546551]
[1646271265803,1.369512,44034.0,44033.0,0.55546551]
[1646271267434,0.674012,44034.0,44033.0,0.55546551]
[1646271267632,0.16950806,44034.0,44033.0,0.55546551]
[1646271269434,0.26950806,44034.0,44033.0,0.55546551]
[1646271269836,0.96500806,44034.0,44033.0,0.55546551]
[1646271276946,1.18270806,44034.0,44033.0,0.55546551]
[1646271278390,0.96270806,44034.0,44033.0,0.55546551]
[1646271279192,0.26720806,44034.0,44033.0,0.55546551]
[1646271281194,0.16720806,44034.0,44033.0,0.55546551]
[1646271284437,0.86270806,44034.0,44033.0,0.55546551]
[1646271284936,0.96270806,44034.0,44033.0,0.55546551]
[1646271285803,0.26720806,44034.0,44033.0,0.55546551]
[1646271286205,0.16720806,44034.0,44033.0,0.55546551]
[1646271292237,0.86270806,44034.0,44033.0,0.55546551]
[1646271292639,0.96270806,44034.0,44033.0,0.55546551]
[1646271295090,0.26720806,44034.0,44033.0,0.55546551]
[1646271295291,0.16720806,44034.0,44033.0,0.55546551]
[1646271295489,0.26720806,44034.0,44033.0,0.55546551]
[1646271295689,0.96270806,44034.0,44033.0,0.55546551]
[1646271295892,0.26720806,44034.0,44033.0,0.55546551]
[1646271296592,0.16720806,44034.0,44033.0,0.55546551]
[1646271296832,0.26720806,44034.0,44033.0,0.55546551]
[1646271297431,0.96270806,44034.0,44033.0,0.55546551]
[1646271297631,0.26720806,44034.0,44033.0,0.55546551]
[1646271297833,0.16720806,44034.0,44033.0,0.55546551]
[1646271298134,0.55092256,44034.0,44033.0,0.55546551]
[1646271298336,0.26720806,44034.0,44033.0,0.55546551]
[1646271298633,0.96270806,44034.0,44033.0,0.55546551]
[1646271299040,0.26720806,44034.0,44033.0,0.55546551]
[1646271300034,0.96270806,44034.0,44033.0,0.55546551]
[1646271300687,1.24642256,44034.0,44033.0,0.55546551]
[1646271301289,0.96270806,44034.0,44033.0,0.55546551]
[1646271301488,1.24643124,44034.0,44033.0,0.55546551]
[1646271301692,1.24643124,44034.0,44033.0,0.55539236]
[1646271302288,0.55093124,44034.0,44033.0,0.55539236]
[1646271303490,1.24643124,44034.0,44033.0,0.55539236]
[1646271307542,1.2460877,44034.0,44033.0,0.55539236]
[1646271309909,1.049512,44032.0,44031.0,0.00020927]
[1646271310210,1.30757523,44032.0,44031.0,0.00020927]
[1646271310409,1.30757523,44032.0,44021.0,0.18878881]
[1646271310608,0.809149,44028.0,44021.0,0.18878881]
[1646271310807,0.1606183,44027.0,44021.0,0.18878881]
[1646271311010,0.2063183,44027.0,44020.0,0.18878881]
[1646271312365,0.056823,44026.0,44021.0,0.00020946]
[1646271312767,0.056823,44026.0,44021.0,0.18921792]
[1646271313367,0.056823,44026.0,44021.0,0.18900846]
[1646271313566,0.056823,44026.0,44021.0,0.18921792]
[1646271314468,1.1062722,44025.0,44021.0,0.18921792]
[1646271314676,1.1062722,44025.0,44018.0,0.23626058]
[1646271314677,1.049457,44023.0,44018.0,0.18900846]
[1646271314868,0.46761005,44023.0,44021.0,0.00020946]
[1646271315070,0.453957,44022.0,44021.0,0.00020946]
[1646271315891,0.156819,44022.0,44019.0,0.0002093]
[1646271316095,0.20847632,44020.0,44019.0,0.0002093]
[1646271316294,0.67608833,44020.0,44019.0,0.0002093]
[1646271316696,0.67608833,44020.0,44011.0,0.23626058]
[1646271316697,0.0227,44018.0,44011.0,0.23626058]
[1646271316896,0.0227,44018.0,44009.0,0.18908375]
[1646271316897,0.353957,44017.0,44009.0,0.18908375]
[1646271317092,0.353957,44017.0,44007.0,0.18908375]
[1646271317093,0.90025231,44012.0,44007.0,0.18908375]
[1646271317298,0.90025231,44012.0,44006.0,0.36089292]
[1646271317299,0.7955,44011.0,44006.0,0.36089292]
[1646271317494,0.7955,44011.0,44006.0,0.18908375]
[1646271317697,0.05684354,44010.0,44005.0,0.18908375]
[1646271317893,0.353957,44009.0,44003.0,0.19018375]
[1646271318194,0.1,44008.0,44003.0,0.0011]
[1646271318393,0.22897189,44005.0,44004.0,0.1724221]
[1646271318594,0.1,44008.0,44004.0,0.1724221]
[1646271319194,0.7955,44008.0,44004.0,0.1724221]
[1646271319455,0.11368095,44008.0,44004.0,0.1724221]
[1646271319657,0.1,44007.0,44004.0,0.17254663]
[1646271319860,0.1,44009.0,44004.0,0.17254663]
[1646271320056,0.5,44012.0,44005.0,0.187023]
[1646271320357,0.5,44012.0,44008.0,0.2522524]
[1646271320555,0.5,44012.0,44009.0,0.187001]
[1646271320757,0.5,44012.0,44010.0,0.186996]
[1646271321058,0.5,44012.0,44011.0,0.17915247]
[1646271321656,0.002,44017.0,44007.0,0.187008]
[1646271321857,0.002,44017.0,44005.0,0.002]
[1646271322059,0.002,44017.0,44009.0,0.00022456]
[1646271322656,0.002,44017.0,44012.0,0.17639049]
[1646271322857,0.0568271,44016.0,44009.0,0.00022456]
[1646271323087,0.0568271,44016.0,44005.0,0.002]
[1646271323289,0.0568271,44016.0,44012.0,0.00022455]
[1646271324191,0.1136561,44016.0,44008.0,0.18480995]
[1646271324389,0.1136561,44016.0,44012.0,0.00021608]
[1646271324996,0.353957,44014.0,44012.0,0.00021608]
[1646271325193,0.4136561,44016.0,44012.0,0.00021608]
[1646271325391,0.4136561,44016.0,44003.0,0.0011]
[1646271325591,0.4136561,44016.0,44011.0,0.00021608]
[1646271325794,0.6955,44015.0,44011.0,0.00021608]
[1646271325993,0.6955,44015.0,44003.0,0.0011]
[1646271325994,1.19528392,44010.0,44003.0,0.0011]
[1646271326194,0.17355297,44006.0,44003.0,0.0011]
[1646271326600,0.42551826,44006.0,44003.0,0.0011]
[1646271326857,0.3,44009.0,44003.0,0.0041]
[1646271327058,0.55662392,44010.0,44003.0,0.0041]
[1646271327259,0.1,44009.0,44003.0,0.0041]
[1646271328159,0.1,44009.0,44004.0,0.20574669]
[1646271328758,0.106,44009.0,44004.0,0.20574669]
[1646271329057,0.106,44009.0,44004.0,0.20563784]
[1646271329260,0.20700089,44007.0,44004.0,0.00020906]
[1646271329460,0.106,44009.0,44004.0,0.00020906]
[1646271329859,0.1,44009.0,44004.0,0.00020906]
[1646271330267,0.1,44009.0,44003.0,0.0011]
[1646271330467,0.1,44009.0,44004.0,0.00020906]
[1646271331196,0.68654596,44010.0,44004.0,0.00020906]
[1646271331393,0.68654596,44010.0,44003.0,0.2077147]
[1646271331593,0.68654596,44010.0,44004.0,0.00020938]
[1646271332295,0.49978392,44010.0,44004.0,0.00020938]
[1646271332496,0.49978392,44010.0,44005.0,0.187022]
[1646271332696,0.49978392,44010.0,44004.0,0.003]
[1646271332898,0.49978392,44010.0,44005.0,0.00020937]
[1646271333395,0.21344543,44008.0,44005.0,0.00020937]
[1646271333797,0.21344543,44008.0,44005.0,0.187022]
[1646271333994,0.21344543,44008.0,44004.0,0.00020938]
[1646271334649,0.21544543,44008.0,44004.0,0.00020938]
[1646271335052,0.21544543,44008.0,44003.0,0.0011]
[1646271335251,0.21544543,44008.0,44004.0,0.00020936]
[1646271335748,0.12856415,44000.0,43999.0,0.002]
[1646271335948,0.01873832,44000.0,43999.0,0.32205]
[1646271336549,0.01873832,44000.0,43999.0,0.49670656]
[1646271336750,0.01873832,44000.0,43999.0,0.32805]
[1646271337750,0.01873832,44000.0,43999.0,0.5184608]
[1646271337950,0.01873832,44000.0,43999.0,0.5124608]
[1646271338604,0.01873832,44000.0,43999.0,0.32205]
[1646271338802,0.01873832,44000.0,43999.0,0.32805]
[1646271339002,0.01873832,44000.0,43999.0,0.51713375]
[1646271339404,0.01873832,44000.0,43999.0,0.32805]
[1646271339603,0.01873832,44000.0,43999.0,0.48241541]
[1646271340004,0.01873832,44000.0,43999.0,0.66549916]
[1646271340808,0.01385793,44010.0,44001.0,0.26657331]
[1646271341005,0.01385793,44010.0,44002.0,0.187038]
[1646271341209,0.01385793,44010.0,44002.0,0.18726258]
[1646271342245,0.01385793,44010.0,44002.0,0.187038]
[1646271342447,0.25307032,44008.0,44002.0,0.18726258]
[1646271342647,0.01385793,44010.0,44004.0,0.187029]
[1646271342848,0.01685793,44010.0,44004.0,0.187027]
[1646271343047,0.01685793,44010.0,44003.0,0.187031]
[1646271343946,0.01385793,44010.0,44003.0,0.39857605]
[1646271344750,0.01385793,44010.0,44003.0,0.40057605]
[1646271345692,0.01385793,44010.0,44003.0,0.189031]
[1646271346096,0.01385793,44010.0,44003.0,0.187031]
[1646271346692,0.01685793,44010.0,44003.0,0.38046053]
[1646271346892,0.01685793,44010.0,44003.0,0.187031]
[1646271347793,0.01685793,44010.0,44002.0,0.00020892]
[1646271347993,0.01385793,44010.0,44002.0,0.00020892]
[1646271348292,0.19779892,44010.0,44002.0,0.18908375]
[1646271348493,0.01385793,44010.0,44002.0,0.18929267]
[1646271348699,0.01685793,44010.0,44003.0,0.187033]
[1646271349751,0.01685793,44010.0,44007.0,0.0011]
[1646271350241,0.31385793,44010.0,44007.0,0.0011]
[1646271350842,0.01385793,44010.0,44007.0,0.0031]
[1646271352844,0.0137696,44010.0,44007.0,0.0031]
[1646271357057,0.0137696,44010.0,44009.0,0.18908375]
[1646271357256,0.0137696,44010.0,44009.0,0.682701]
[1646271357554,0.0137696,44010.0,44009.0,1.05396158]
[1646271357555,0.00314176,44010.0,44009.0,1.05396158]
[1646271357755,0.00314176,44010.0,44009.0,0.90396158]
[1646271357953,0.00314176,44010.0,44009.0,0.817701]
[1646271358552,0.00314176,44010.0,44009.0,0.76614783]
[1646271358752,0.00314176,44010.0,44009.0,0.48263513]
[1646271358955,0.00614176,44010.0,44009.0,0.48263513]
[1646271359153,0.00614176,44010.0,44009.0,0.78263513]
[1646271359453,0.00614176,44010.0,44009.0,0.95925163]
[1646271359953,0.00614176,44010.0,44009.0,1.24276433]
[1646271360153,0.00614176,44010.0,44009.0,0.95925163]
[1646271360352,0.00614176,44010.0,44009.0,0.65925163]
[1646271360601,0.00614176,44010.0,44009.0,1.24276433]
[1646271360796,0.00314176,44010.0,44009.0,1.24276433]
[1646271361196,0.00314176,44010.0,44009.0,0.95925163]
[1646271361399,0.00314176,44010.0,44009.0,1.29957433]
[1646271361602,0.00314176,44010.0,44009.0,1.01606163]
[1646271362198,0.00083712,44022.0,44010.0,1.136997]
[1646271362498,0.00083712,44022.0,44014.0,0.186969]
[1646271362699,0.21628628,44025.0,44018.0,0.186949]
[1646271362898,0.21733269,44025.0,44016.0,0.186955]
[1646271363900,0.18240222,44022.0,44015.0,0.21565649]
[1646271364104,0.21649557,44025.0,44015.0,0.21565649]
[1646271364352,0.21649557,44025.0,44016.0,0.186956]
[1646271364756,0.43159615,44025.0,44016.0,0.186956]
[1646271364954,0.21649557,44025.0,44016.0,0.186956]
[1646271365152,0.19143559,44024.0,44016.0,0.186956]
[1646271365352,0.19143559,44024.0,44016.0,0.3635725]
[1646271365559,0.21949557,44025.0,44016.0,0.40384976]
[1646271365755,0.00320929,44025.0,44016.0,0.88046626]
[1646271365954,0.00320929,44025.0,44016.0,0.70384976]
[1646271366357,0.003,44025.0,44016.0,0.88046626]
[1646271366555,0.00020929,44025.0,44016.0,0.88046626]
[1646271367156,0.00020929,44025.0,44016.0,0.88446626]
[1646271367555,0.38351428,44027.0,44016.0,0.88446626]
[1646271367755,0.00020929,44025.0,44016.0,0.88446626]
[1646271368210,0.00020929,44025.0,44017.0,0.1766165]
[1646271368406,0.00020929,44025.0,44018.0,0.186947]
[1646271368807,0.38351428,44027.0,44017.0,0.1766165]
[1646271369109,0.00020929,44025.0,44017.0,0.186949]
[1646271369410,0.00020929,44025.0,44016.0,0.51689376]
[1646271369411,0.27920938,44024.0,44018.0,0.004]
[1646271369806,0.27920938,44024.0,44019.0,0.186942]
[1646271370207,0.00020929,44025.0,44018.0,0.004]
[1646271370507,0.20526884,44021.0,44015.0,0.186959]
[1646271370908,0.21296933,44014.0,44012.0,0.16765284]
[1646271371108,0.21296933,44014.0,44013.0,0.135]
[1646271371409,0.21296933,44014.0,44010.0,0.430264]
[1646271371610,0.21296933,44014.0,44010.0,0.1826165]
[1646271371848,0.21296933,44014.0,44011.0,0.056812]
[1646271372052,0.21296933,44014.0,44010.0,0.062812]
[1646271372247,0.21296933,44014.0,44012.0,0.15994427]
[1646271372449,0.21296933,44014.0,44012.0,0.34897633]
[1646271372645,0.21296933,44014.0,44013.0,0.30170026]
[1646271372847,0.21296933,44014.0,44013.0,0.135]
[1646271373247,0.21296933,44014.0,44013.0,0.141]
[1646271374051,0.21296933,44014.0,44013.0,0.3395303]
[1646271374248,0.21296933,44014.0,44013.0,0.141]
[1646271374652,0.21296933,44014.0,44013.0,0.135]
[1646271375248,0.21296933,44014.0,44013.0,0.30787159]
[1646271375452,0.21296933,44014.0,44013.0,0.143]
[1646271376493,0.21296933,44014.0,44013.0,0.325583]
[1646271376695,0.21296933,44014.0,44013.0,0.135]
[1646271377198,0.21296933,44014.0,44013.0,0.143]
[1646271378594,0.21296933,44014.0,44013.0,0.135]
[1646271379195,0.21296933,44014.0,44013.0,0.142]
[1646271380550,0.21296933,44014.0,44013.0,0.29276503]
[1646271380848,0.21296933,44014.0,44013.0,0.135]
[1646271381249,0.21296933,44014.0,44013.0,0.141]
[1646271381451,0.21296933,44014.0,44013.0,0.006]
[1646271381652,0.36779942,44014.0,44013.0,0.006]
[1646271382248,0.56769224,44014.0,44013.0,0.006]
[1646271382453,0.56769224,44014.0,44007.0,0.0011]
[1646271382454,1.28589224,44014.0,44007.0,0.0011]
[1646271383301,1.28589224,44014.0,44007.0,0.0031]
[1646271383704,0.6955,44012.0,44007.0,0.0031]
[1646271384101,0.6955,44010.0,44007.0,0.0031]
[1646271384300,0.7955,44009.0,44007.0,0.0031]
[1646271384499,0.7955,44009.0,44007.0,0.0011]
[1646271385703,0.1,44009.0,44007.0,0.0011]
[1646271386100,0.1,44012.0,44007.0,0.0011]
[1646271386701,0.6955,44011.0,44007.0,0.0011]
[1646271387147,0.6955,44009.0,44007.0,0.0011]
[1646271387755,0.1,44008.0,44007.0,0.0011]
[1646271387949,0.453974,44008.0,44007.0,0.0011]
[1646271388449,0.1,44008.0,44007.0,0.0011]
[1646271389348,0.7995,44008.0,44007.0,0.0011]
[1646271389553,1.153474,44008.0,44007.0,0.0011]
[1646271390457,1.149474,44008.0,44007.0,0.0011]
[1646271390710,1.44484733,44008.0,44007.0,0.0011]
[1646271390914,0.69587343,44006.0,44005.0,0.0011]
[1646271391113,0.99127851,44006.0,44005.0,0.0011]
[1646271391313,1.09127851,44006.0,44005.0,0.0011]
[1646271391513,0.79587343,44006.0,44005.0,0.0011]
[1646271394844,1.14984743,44006.0,44005.0,0.0011]
[1646271395044,0.79587343,44006.0,44005.0,0.0011]
[1646271395247,0.79987343,44006.0,44005.0,0.0011]
[1646271395444,0.84557343,44006.0,44005.0,0.0011]
[1646271396043,1.19954743,44006.0,44005.0,0.0011]
[1646271396243,0.84557343,44006.0,44005.0,0.0011]
[1646271396446,0.84157343,44006.0,44005.0,0.0011]
[1646271399596,0.14607343,44006.0,44005.0,0.0011]
[1646271399797,0.84157343,44006.0,44005.0,0.0011]
[1646271399998,0.14607343,44006.0,44005.0,0.0011]
[1646271400395,0.44607343,44006.0,44005.0,0.0011]
[1646271400599,1.14157343,44006.0,44005.0,0.0011]
[1646271401002,0.00243999,43995.0,43994.0,0.16382756]
[1646271401197,0.00243999,43995.0,43994.0,0.0011]
[1646271403245,0.00443999,43995.0,43994.0,0.0011]
[1646271403649,0.19731967,43995.0,43994.0,0.0011]
[1646271403844,0.00443999,43995.0,43994.0,0.0011]
[1646271404646,0.00243999,43995.0,43994.0,0.0011]
[1646271405049,0.30243999,43995.0,43994.0,0.0011]
[1646271405254,0.45213999,43995.0,43994.0,0.0011]
[1646271406434,1.14763999,43995.0,43994.0,0.0011]
[1646271406631,1.14363999,43995.0,43994.0,0.0011]
[1646271407429,1.14763999,43995.0,43994.0,0.0011]
[1646271407831,0.45213999,43995.0,43994.0,0.0011]
[1646271408629,1.14363999,43995.0,43994.0,0.0011]
[1646271409457,1.14863999,43995.0,43994.0,0.0011]
[1646271410557,1.14363999,43995.0,43994.0,0.0011]
[1646271411158,0.44813999,43995.0,43994.0,0.0011]
[1646271412557,0.40243999,43995.0,43994.0,0.0011]
[1646271412760,0.10243999,43995.0,43994.0,0.0011]
[1646271412960,0.00243999,43995.0,43994.0,0.0011]
[1646271417275,0.00643999,43995.0,43994.0,0.0011]
[1646271418676,0.00243999,43995.0,43994.0,0.0011]
[1646271419380,0.00843999,43995.0,43994.0,0.0011]
[1646271420593,0.00243999,43995.0,43994.0,0.0011]
[1646271421395,0.00943999,43995.0,43994.0,0.0011]
[1646271422596,0.00243999,43995.0,43994.0,0.0011]
[1646271423599,0.30243999,43995.0,43994.0,0.0011]
[1646271424650,0.30243999,43995.0,43994.0,0.00100205]
[1646271427548,0.51393676,43995.0,43994.0,0.00100205]
[1646271427747,0.30243999,43995.0,43994.0,0.00100205]
[1646271428407,0.00243999,43995.0,43994.0,0.00100205]
[1646271428610,0.00743999,43995.0,43994.0,0.00100205]
[1646271429007,0.01243999,43995.0,43994.0,0.00100205]
[1646271429811,0.00243999,43995.0,43994.0,0.00100205]
[1646271430908,0.00012132,43987.0,43986.0,0.18894602]
[1646271431107,0.00012132,43987.0,43985.0,0.18894602]
[1646271431308,0.00012132,43987.0,43986.0,0.18894602]
[1646271431843,0.00012132,43987.0,43985.0,0.18894602]
[1646271432358,0.00012132,43987.0,43982.0,0.18894602]
[1646271432359,0.353974,43986.0,43982.0,0.18894602]
[1646271432548,0.353974,43984.0,43981.0,0.02]
[1646271432745,0.0227,43986.0,43981.0,0.02]
[1646271432746,0.353974,43982.0,43981.0,0.02]
[1646271433146,0.453974,43982.0,43981.0,0.02]
[1646271433347,0.82694094,43982.0,43981.0,0.02]
[1646271433546,0.47296694,43982.0,43981.0,0.02]
[1646271433746,0.64174956,43982.0,43981.0,0.02]
[1646271433948,0.453974,43982.0,43981.0,0.02]
[1646271434350,0.1,43982.0,43981.0,0.02]
[1646271434854,0.399674,43986.0,43981.0,0.02]
[1646271435250,0.353974,43984.0,43981.0,0.02]
[1646271435720,0.1,43983.0,43981.0,0.02]
[1646271435919,0.353974,43982.0,43981.0,0.02]
[1646271436321,0.1,43982.0,43981.0,0.02]
[1646271436522,0.453974,43982.0,43981.0,0.02]
[1646271436726,1.219024,43982.0,43981.0,0.02]
[1646271437721,0.523524,43982.0,43981.0,0.02]
[1646271438428,0.64620366,43982.0,43981.0,0.02]
[1646271438628,0.453974,43982.0,43981.0,0.02]
[1646271438824,1.05975425,43980.0,43979.0,0.00022464]
[1646271439024,1.10545425,43980.0,43979.0,0.00022464]
[1646271439224,1.20545425,43980.0,43979.0,0.00022464]
[1646271439456,0.11028025,43980.0,43979.0,0.00022464]
[1646271439658,0.11028025,43980.0,43977.0,0.3]
[1646271439850,0.11028025,43980.0,43977.0,0.00022465]
[1646271440056,0.01028025,43980.0,43977.0,0.00022465]
[1646271440451,0.01028025,43980.0,43978.0,0.183163]
[1646271443400,0.01028025,43980.0,43977.0,0.00021743]
[1646271444496,0.01028025,43980.0,43976.0,0.18177412]
[1646271444697,0.01028025,43980.0,43977.0,0.20299888]
[1646271445102,0.01028025,43980.0,43977.0,0.004]
[1646271446099,0.01028025,43980.0,43978.0,0.19816947]
[1646271446698,0.01028025,43980.0,43978.0,0.20116947]
[1646271446961,0.01028025,43980.0,43978.0,0.003]
[1646271448064,0.01028025,43980.0,43979.0,0.17550096]
[1646271448663,0.01028025,43980.0,43979.0,0.17750096]
[1646271449962,0.01028025,43980.0,43979.0,0.17550096]
[1646271452806,0.01028025,43980.0,43977.0,0.0457]
[1646271453005,0.01028025,43980.0,43977.0,0.00020995]
[1646271453805,0.44082844,43979.0,43977.0,0.00020995]
[1646271454008,0.44082844,43979.0,43976.0,0.0011]
[1646271454206,0.27182299,43979.0,43976.0,0.0012099]
[1646271454456,0.19378568,43977.0,43976.0,0.0012099]
[1646271455253,0.19378568,43977.0,43976.0,0.0011]
[1646271456661,0.01028025,43980.0,43976.0,0.0011]
[1646271456861,0.002,43977.0,43976.0,0.0011]
[1646271458111,0.01028025,43980.0,43976.0,0.0011]
[1646271458707,0.01028025,43980.0,43976.0,0.0031]
[1646271459108,0.01028025,43980.0,43977.0,0.16037654]
[1646271459510,0.01028025,43980.0,43978.0,0.056861]
[1646271459709,0.01028025,43980.0,43978.0,0.102561]
[1646271459912,0.01028025,43980.0,43979.0,0.113713]
[1646271460109,0.01028025,43980.0,43979.0,0.2684498]
[1646271462147,0.01028025,43980.0,43979.0,0.40581612]
[1646271464850,0.01028025,43980.0,43979.0,0.1587368]
[1646271465052,0.29586859,43978.0,43977.0,0.00021029]
[1646271466018,0.29586859,43978.0,43976.0,0.19026323]
[1646271466820,0.29586859,43978.0,43976.0,0.19526323]
[1646271467018,0.29586859,43978.0,43976.0,0.0061]
[1646271467820,0.25896991,43977.0,43976.0,0.0061]
[1646271468620,0.25896991,43977.0,43976.0,0.0011]
[1646271468821,0.29586859,43978.0,43976.0,0.0011]
[1646271470857,0.29586859,43978.0,43976.0,0.0031]
[1646271472057,0.29586859,43978.0,43976.0,0.0011]
[1646271473201,0.29586859,43978.0,43976.0,0.17812654]
[1646271473401,0.29586859,43978.0,43976.0,0.0011]
[1646271478958,0.29686859,43978.0,43976.0,0.0011]
[1646271479557,0.29886859,43978.0,43976.0,0.0011]
[1646271480158,0.29786859,43978.0,43976.0,0.0011]
[1646271480361,0.29586859,43978.0,43976.0,0.0011]
[1646271481607,0.3,43977.0,43976.0,0.05795943]
[1646271481815,0.3,43977.0,43976.0,0.0011]
[1646271482011,0.38171859,43978.0,43976.0,0.0011]
[1646271482409,0.68171859,43978.0,43976.0,0.0011]
[1646271482609,0.3,43977.0,43976.0,0.0011]
[1646271482810,0.4,43977.0,43976.0,0.0011]
[1646271483010,0.4,43977.0,43976.0,0.0111]
[1646271483208,0.404,43977.0,43976.0,0.0111]
[1646271483410,0.00685251,43975.0,43972.0,0.0011]
[1646271483610,0.88455782,43974.0,43972.0,0.0011]
[1646271483815,0.00685251,43975.0,43972.0,0.0011]
[1646271483816,1.28455782,43973.0,43972.0,0.0011]
[1646271484017,1.28455782,43973.0,43972.0,0.0001]
[1646271484018,1.645174,43973.0,43972.0,0.0001]
[1646271484210,1.656544,43973.0,43972.0,0.0001]
[1646271484464,1.94015474,43973.0,43972.0,0.0001]
[1646271484665,1.656544,43973.0,43972.0,0.0001]
[1646271485163,1.94500844,43973.0,43972.0,0.0001]
[1646271485363,1.93363844,43973.0,43972.0,0.0001]
[1646271485562,1.94500844,43973.0,43972.0,0.0001]
[1646271486166,1.661544,43973.0,43972.0,0.0001]
[1646271486568,1.656544,43973.0,43972.0,0.0001]
[1646271487166,1.8976681,43973.0,43972.0,0.0001]
[1646271487565,1.8862981,43973.0,43972.0,0.0001]
[1646271487766,0.7407981,43973.0,43972.0,0.0001]
[1646271487966,1.4362981,43973.0,43972.0,0.0001]
[1646271488234,1.200174,43973.0,43972.0,0.0001]
[1646271488435,1.195174,43973.0,43972.0,0.0001]